Workbook

Sheet P. BDI 1
B1: IMPRIMIR EM PAPEL TIMBRADO DA EMPRESA PROPONENTE
B2: BDI - Bonificações e Despesas Indiretas
B3: Edital : | C3: TP- 002/2019
B4: Tomador: | C4: Prefeitura Municipal de Dois Vizinhos - PR
B5: Empreendimento: | C5: Reforma e revitalização de vias urbanas
B6: Local da Obra: | C6: Dois Vizinhos - Pr
B7: Empresa Prop.: | C7: xxxxxxxxxxxxxx
B8: CNPJ: | C8: xxxxxxxxxxxxxx
B9: Referencia: | C9: xxxxxxxxxxxxxx
B11: Identifique o tipo de obra: | C11: 1 | D11: =IF(C11>0,IF(C11<7,,"<--- Insira valor entre 1 e 6"),"<--- Insira valor entre 1 e 6") -> 0
B12: Construção de edifícios: | C12: 1 | D12: Informe a base de cálculo do ISSQN.
B13: Construção de rodovias e ferrovias: | C13: 2 | D13: =IF(D14<>0,0,"( X )") -> 0 | E13: Sobre os serviços.
B14: Construção de redes de abastecimento de água, coleta de esgoto e construções correlatas: | C14: 3 | D14: x | E14: Sobre a mão-de-obra.
B15: Construção e manutenção de estações e redes de distribuição de energia elétrica: | C15: 4 | D15: Informe a ocorrência da DESONERAÇÃO da folha de pagamento. Lei 12844/2013.
B16: Obras portuárias, marítimas e fluviais: | C16: 5 | D16: =IF(D17<>0,0,"( X )") -> 0 | E16: SEM Desoneração.
B17: Fornecimento de materiais e equipamentos: | C17: 6 | D17: x | E17: COM Desoneração.
C19: Intervalo de admissibilidade | H19: Ac | I19: =F21 -> preencher
B20: Item Componente do BDI | C20: 1º Quartil | D20: Médio | E20: 3º Quartil | F20: Valores Propostos | H20: S | I20: =F22 -> preencher
B21: Administração Central | C21: 0.03 | D21: 0.04 | E21: 0.055 | F21: preencher | G21: =IF(F21=0,"",IF(F21<C21,"Atenção, observar os intervalos!",IF(F21>E21,"Atenção, observar os intervalos!",""))) -> Atenção, observar os intervalos! | H21: G | I21: =I20 -> preencher
B22: Seguro e Garantia | C22: 0.008 | D22: 0.008 | E22: 0.01 | F22: preencher | G22: =IF(F22=0,"",IF(F22<C22,"Atenção, observar os intervalos!",IF(F22>E22,"Atenção, observar os intervalos!",""))) -> Atenção, observar os intervalos! | H22: R | I22: =F23 -> preencher
B23: Risco | C23: 0.0097 | D23: 0.0127 | E23: 0.0127 | F23: preencher | G23: =IF(F23=0,"",IF(F23<C23,"Atenção, observar os intervalos!",IF(F23>E23,"Atenção, observar os intervalos!",""))) -> Atenção, observar os intervalos! | H23: DF | I23: preencher
B24: Despesas Financeiras | C24: 0.0059 | D24: 0.0123 | E24: 0.0139 | F24: preencher | G24: =IF(F24=0,"",IF(F24<C24,"Atenção, observar os intervalos!",IF(F24>E24,"Atenção, observar os intervalos!",""))) -> Atenção, observar os intervalos! | H24: L | I24: preencher
B25: Lucro | C25: 0.0616 | D25: 0.074 | E25: 0.0896 | F25: preencher | G25: =IF(F25=0,"",IF(F25<C25,"Atenção, observar os intervalos!",IF(F25>E25,"Atenção, observar os intervalos!",""))) -> Atenção, observar os intervalos! | H25: l1 | I25: preencher
B26: I1: PIS e COFINS | F26: preencher | H26: l2 | I26: preencher
B27: I2: ISSQN (conforme legislação municipal) | F27: preencher | H27: l3 | I27: 0.045
B28: I3: Cont.Prev s/Rec.Bruta (Lei 12844/13 - Desoneração) | F28: 0.045
B30: BDI - SEM Desoneração da folha de pagamento | F30: =ROUND((((1+I19+I21+I22)*(1+I23)*(1+I24))/(1-I25-I26))-1,4) ->  | H30: 1º QUARTIL | I30: MÉDIO | J30: 3º QUARTIL
B31: BDI - COM Desoneração da folha de pagamento | F31: =ROUND((((1+I19+I21+I22)*(1+I23)*(1+I24))/(1-I25-I26-I27))-1,4) ->  | H31: 0.2034 | I31: 0.2212 | J31: 0.25
B33: Declaramos que esta planilha foi elaborada conforme equação para cálculo do percentual do BDI recomendada pelo Acórdão 2622/2013 - TCU, representada pela fórmula abaixo.
B35: BDI - SEM Desoneração = [(1+AC+S+G+R)X(1+DF)X(1+L)/(1-I1-I2)]-1
B36: BDI - COM Desoneração = [(1+AC+S+G+R)X(1+DF)X(1+L)/(1-I1-I2-I3)]-1
B42: Responsável Técnico: | C42: .
B43: Carimbo e Assinatura CREA/CAU: | C43: .
B51: Responsavel Legal: | C51: .
B52: Carimbo e Assinatura | C52: Cpf:

Sheet P. BDI 2
B1: IMPRIMIR EM PAPEL TIMBRADO DA EMPRESA PROPONENTE
B2: BDI - Bonificações e Despesas Indiretas
B3: Edital : | C3: ='P. BDI 1'!C3 -> TP- 002/2019
B4: Tomador: | C4: ='P. BDI 1'!C4 -> Prefeitura Municipal de Dois Vizinhos - PR
B5: Empreendimento: | C5: ='P. BDI 1'!C5 -> Reforma e revitalização de vias urbanas
B6: Local da Obra: | C6: ='P. BDI 1'!C6 -> Dois Vizinhos - Pr
B7: Empresa Prop.: | C7: ='P. BDI 1'!C7 -> xxxxxxxxxxxxxx
B8: CNPJ: | C8: ='P. BDI 1'!C8 -> xxxxxxxxxxxxxx
B9: Referencia: | C9: ='P. BDI 1'!C9 -> xxxxxxxxxxxxxx
B11: Identifique o tipo de obra: | C11: 2 | D11: =IF(C11>0,IF(C11<7,,"<--- Insira valor entre 1 e 6"),"<--- Insira valor entre 1 e 6") -> 0
B12: Construção de edifícios: | C12: 1 | D12: Informe a base de cálculo do ISSQN.
B13: Construção de rodovias e ferrovias: | C13: 2 | D13: =IF(D14<>0,0,"( X )") -> 0 | E13: Sobre os serviços.
B14: Construção de redes de abastecimento de água, coleta de esgoto e construções correlatas: | C14: 3 | D14: x | E14: Sobre a mão-de-obra.
B15: Construção e manutenção de estações e redes de distribuição de energia elétrica: | C15: 4 | D15: Informe a ocorrência da DESONERAÇÃO da folha de pagamento. Lei 12844/2013.
B16: Obras portuárias, marítimas e fluviais: | C16: 5 | D16: =IF(D17<>0,0,"( X )") -> 0 | E16: SEM Desoneração.
B17: Fornecimento de materiais e equipamentos: | C17: 6 | D17: x | E17: COM Desoneração.
C19: Intervalo de admissibilidade | H19: Ac | I19: =F21 -> preencher
B20: Item Componente do BDI | C20: 1º Quartil | D20: Médio | E20: 3º Quartil | F20: Valores Propostos | H20: S | I20: =F22 -> preencher
B21: Administração Central | C21: 0.038 | D21: 0.0401 | E21: 0.0467 | F21: preencher | G21: =IF(F21=0,"",IF(F21<C21,"Atenção, observar os intervalos!",IF(F21>E21,"Atenção, observar os intervalos!",""))) -> Atenção, observar os intervalos! | H21: G | I21: =I20 -> preencher
B22: Seguro e Garantia | C22: 0.0032 | D22: 0.004 | E22: 0.0074 | F22: preencher | G22: =IF(F22=0,"",IF(F22<C22,"Atenção, observar os intervalos!",IF(F22>E22,"Atenção, observar os intervalos!",""))) -> Atenção, observar os intervalos! | H22: R | I22: =F23 -> preencher
B23: Risco | C23: 0.005 | D23: 0.0056 | E23: 0.0097 | F23: preencher | G23: =IF(F23=0,"",IF(F23<C23,"Atenção, observar os intervalos!",IF(F23>E23,"Atenção, observar os intervalos!",""))) -> Atenção, observar os intervalos! | H23: DF | I23: preencher
B24: Despesas Financeiras | C24: 0.0102 | D24: 0.0111 | E24: 0.0121 | F24: preencher | G24: =IF(F24=0,"",IF(F24<C24,"Atenção, observar os intervalos!",IF(F24>E24,"Atenção, observar os intervalos!",""))) -> Atenção, observar os intervalos! | H24: L | I24: preencher
B25: Lucro | C25: 0.0664 | D25: 0.073 | E25: 0.0869 | F25: preencher | G25: =IF(F25=0,"",IF(F25<C25,"Atenção, observar os intervalos!",IF(F25>E25,"Atenção, observar os intervalos!",""))) -> Atenção, observar os intervalos! | H25: l1 | I25: preencher
B26: I1: PIS e COFINS | F26: preencher | H26: l2 | I26: preencher
B27: I2: ISSQN (conforme legislação municipal) | F27: preencher | H27: l3 | I27: 0.045
B28: I3: Cont.Prev s/Rec.Bruta (Lei 12844/13 - Desoneração) | F28: 0.045
B30: BDI - SEM Desoneração da folha de pagamento | F30: =ROUND((((1+I19+I21+I22)*(1+I23)*(1+I24))/(1-I25-I26))-1,4) ->  | H30: 1º QUARTIL | I30: MÉDIO | J30: 3º QUARTIL
B31: BDI - COM Desoneração da folha de pagamento | F31: =ROUND((((1+I19+I21+I22)*(1+I23)*(1+I24))/(1-I25-I26-I27))-1,4) ->  | H31: 0.2034 | I31: 0.2212 | J31: 0.25
B33: Declaramos que esta planilha foi elaborada conforme equação para cálculo do percentual do BDI recomendada pelo Acórdão 2622/2013 - TCU, representada pela fórmula abaixo.
B35: BDI - SEM Desoneração = [(1+AC+S+G+R)X(1+DF)X(1+L)/(1-I1-I2)]-1
B36: BDI - COM Desoneração = [(1+AC+S+G+R)X(1+DF)X(1+L)/(1-I1-I2-I3)]-1
B42: Responsável Técnico: | C42: ='P. BDI 1'!C42 -> .
B43: Carimbo e Assinatura CREA/CAU: | C43: ='P. BDI 1'!C43 -> .
B51: Responsavel Legal: | C51: ='P. BDI 1'!C51 -> .
B52: Carimbo e Assinatura | C52: ='P. BDI 1'!C52 -> Cpf:

Sheet P. BDI 3
B1: IMPRIMIR EM PAPEL TIMBRADO DA EMPRESA PROPONENTE
B2: BDI - Bonificações e Despesas Indiretas
B3: Edital : | C3: ='P. BDI 1'!C3 -> TP- 002/2019
B4: Tomador: | C4: ='P. BDI 1'!C4 -> Prefeitura Municipal de Dois Vizinhos - PR
B5: Empreendimento: | C5: ='P. BDI 1'!C5 -> Reforma e revitalização de vias urbanas
B6: Local da Obra: | C6: ='P. BDI 1'!C6 -> Dois Vizinhos - Pr
B7: Empresa Prop.: | C7: ='P. BDI 1'!C7 -> xxxxxxxxxxxxxx
B8: CNPJ: | C8: ='P. BDI 1'!C8 -> xxxxxxxxxxxxxx
B9: Referencia: | C9: ='P. BDI 1'!C9 -> xxxxxxxxxxxxxx
B11: Identifique o tipo de obra: | C11: 3 | D11: =IF(C11>0,IF(C11<7,,"<--- Insira valor entre 1 e 6"),"<--- Insira valor entre 1 e 6") -> 0
B12: Construção de edifícios: | C12: 1 | D12: Informe a base de cálculo do ISSQN.
B13: Construção de rodovias e ferrovias: | C13: 2 | D13: =IF(D14<>0,0,"( X )") -> 0 | E13: Sobre os serviços.
B14: Construção de redes de abastecimento de água, coleta de esgoto e construções correlatas: | C14: 3 | D14: x | E14: Sobre a mão-de-obra.
B15: Construção e manutenção de estações e redes de distribuição de energia elétrica: | C15: 4 | D15: Informe a ocorrência da DESONERAÇÃO da folha de pagamento. Lei 12844/2013.
B16: Obras portuárias, marítimas e fluviais: | C16: 5 | D16: =IF(D17<>0,0,"( X )") -> 0 | E16: SEM Desoneração.
B17: Fornecimento de materiais e equipamentos: | C17: 6 | D17: x | E17: COM Desoneração.
C19: Intervalo de admissibilidade | H19: Ac | I19: =F21 -> preencher
B20: Item Componente do BDI | C20: 1º Quartil | D20: Médio | E20: 3º Quartil | F20: Valores Propostos | H20: S | I20: =F22 -> preencher
B21: Administração Central | C21: 0.0343 | D21: 0.0493 | E21: 0.0671 | F21: preencher | G21: =IF(F21=0,"",IF(F21<C21,"Atenção, observar os intervalos!",IF(F21>E21,"Atenção, observar os intervalos!",""))) -> Atenção, observar os intervalos! | H21: G | I21: =I20 -> preencher
B22: Seguro e Garantia | C22: 0.0028 | D22: 0.0049 | E22: 0.0075 | F22: preencher | G22: =IF(F22=0,"",IF(F22<C22,"Atenção, observar os intervalos!",IF(F22>E22,"Atenção, observar os intervalos!",""))) -> Atenção, observar os intervalos! | H22: R | I22: =F23 -> preencher
B23: Risco | C23: 0.01 | D23: 0.0139 | E23: 0.0174 | F23: preencher | G23: =IF(F23=0,"",IF(F23<C23,"Atenção, observar os intervalos!",IF(F23>E23,"Atenção, observar os intervalos!",""))) -> Atenção, observar os intervalos! | H23: DF | I23: preencher
B24: Despesas Financeiras | C24: 0.0094 | D24: 0.0099 | E24: 0.0117 | F24: preencher | G24: =IF(F24=0,"",IF(F24<C24,"Atenção, observar os intervalos!",IF(F24>E24,"Atenção, observar os intervalos!",""))) -> Atenção, observar os intervalos! | H24: L | I24: preencher
B25: Lucro | C25: 0.0674 | D25: 0.0804 | E25: 0.094 | F25: preencher | G25: =IF(F25=0,"",IF(F25<C25,"Atenção, observar os intervalos!",IF(F25>E25,"Atenção, observar os intervalos!",""))) -> Atenção, observar os intervalos! | H25: l1 | I25: preencher
B26: I1: PIS e COFINS | F26: preencher | H26: l2 | I26: preencher
B27: I2: ISSQN (conforme legislação municipal) | F27: preencher | H27: l3 | I27: 0.045
B28: I3: Cont.Prev s/Rec.Bruta (Lei 12844/13 - Desoneração) | F28: 0.045
B30: BDI - SEM Desoneração da folha de pagamento | F30: =ROUND((((1+I19+I21+I22)*(1+I23)*(1+I24))/(1-I25-I26))-1,4) ->  | H30: 1º QUARTIL | I30: MÉDIO | J30: 3º QUARTIL
B31: BDI - COM Desoneração da folha de pagamento | F31: =ROUND((((1+I19+I21+I22)*(1+I23)*(1+I24))/(1-I25-I26-I27))-1,4) ->  | H31: 0.2034 | I31: 0.2212 | J31: 0.25
B33: Declaramos que esta planilha foi elaborada conforme equação para cálculo do percentual do BDI recomendada pelo Acórdão 2622/2013 - TCU, representada pela fórmula abaixo.
B35: BDI - SEM Desoneração = [(1+AC+S+G+R)X(1+DF)X(1+L)/(1-I1-I2)]-1
B36: BDI - COM Desoneração = [(1+AC+S+G+R)X(1+DF)X(1+L)/(1-I1-I2-I3)]-1
B41: Responsável Técnico: | C41: ='P. BDI 1'!C42 -> .
B42: Carimbo e Assinatura CREA/CAU: | C42: ='P. BDI 1'!C43 -> .
B50: Responsavel Legal: | C50: ='P. BDI 1'!C51 -> .
B51: Carimbo e Assinatura | C51: ='P. BDI 1'!C52 -> Cpf:

Sheet Kennedy e Hablich
A1: IMPRIMIR EM PAPEL TIMBRADO DA EMPRESA PROPONENTE
A2: PLANILHA ORÇAMENTARIA
A5: ='P. BDI 1'!B3 -> Edital : | C5: ='P. BDI 1'!C3:F3 -> TP- 002/2019 | D5: Área: | F5: =F31+F70+F72 -> 1038.6 | H5: m²
A6: ='P. BDI 1'!B4 -> Tomador: | C6: ='P. BDI 1'!C4:F4 -> Prefeitura Municipal de Dois Vizinhos - PR | D6: Custo R$/m2 | F6: =H99/F5 -> 
A7: ='P. BDI 1'!B5 -> Empreendimento: | C7: ='P. BDI 1'!C5:F5 -> Reforma e revitalização de vias urbanas
A8: ='P. BDI 1'!B6 -> Local da Obra: | C8: Av. Presidente Kennedy e Rua Firmo Hablich
A9: ='P. BDI 1'!B7 -> Empresa Prop.: | C9: ='P. BDI 1'!C7:F7 -> xxxxxxxxxxxxxx
A10: ='P. BDI 1'!B8 -> CNPJ: | C10: ='P. BDI 1'!C8:F8 -> xxxxxxxxxxxxxx
A11: ='P. BDI 1'!B9 -> Referencia: | C11: ='P. BDI 1'!C9:F9 -> xxxxxxxxxxxxxx
A14: ITEM . | B14: REF. | C14: DESCRIÇÃO | D14: UN | E14: VALOR UNIT. | F14: QUANT. | G14: VALOR UNIT C/ BDI | H14: TOTAL
C16: AVENIDA PRESIDENTE KENNEDY | G16: TOTAL: | H16: =H18+H25+H36+H46+H54 -> 
J17: =ROUND(E17*F17,2) -> 0
A18: 1 | C18: SERVIÇOS PRELIMINARES | D18: BDI | E18: =E25 ->  | G18: TOTAL DO GRUPO: | H18: =SUM(H19:H24) -> 
A20: 1.1 | B20: 74209/001 | C20: PLACA DE OBRA (PARA CONSTRUCAO CIVIL) EM CHAPA GALVANIZADA *N. 22*, DE *2,0 X 1,125* M | D20: M2 | F20: 2.25 | G20: =ROUND((E20*$E$18)+E20,2) ->  | H20: =ROUND(G20*F20,2) ->  | J20: =ROUND(E20*F20,2) -> 0
A21: 1.2 | B21: 97627 | C21: DEMOLIÇÃO DE PILARES (POSTES) EM CONCRETO ARMADO, DE FORMA MECANIZADA COM MARTELETE, SEM REAPROVEITAMENTO. | D21: M3 | F21: =ROUND(5*0.35*0.35*2.5,2) -> 1.53 | G21: =ROUND((E21*$E$18)+E21,2) ->  | H21: =ROUND(G21*F21,2) ->  | J21: =ROUND(E21*F21,2) -> 0
A22: 1.3 | B22: 97636 | C22: DEMOLIÇÃO PARCIAL DE PAVIMENTO ASFÁLTICO, DE FORMA MECANIZADA, SEM REAPROVEITAMENTO. AF_12/2017 | D22: M2 | F22: =8.5+14+4.6+6.15+12+6.7+22.8+13.85 -> 88.6 | G22: =ROUND((E22*$E$18)+E22,2) ->  | H22: =ROUND(G22*F22,2) ->  | J22: 0
A23: 1.4 | B23: 95875 | C23: TRANSPORTE COM CAMINHÃO BASCULANTE DE 10 M3, EM VIA URBANA PAVIMENTADA | D23: M3XKM | F23: =F22*0.2*8 -> 141.76 | G23: =ROUND((E23*$E$18)+E23,2) ->  | J23: 0
J24: 0
A25: 2 | C25: PAVIMENTAÇÃO | D25: BDI | E25: ='P. BDI 2'!F31 ->  | G25: TOTAL DO GRUPO: | H25: =SUM(H26:H35) -> 
J26: 0
A27: 2.1 | B27: 90100 | C27: ESCAVAÇÃO MECANIZADA COM RETROESCAVADEIRA | D27: M3 | F27: =F30+F29 -> 44.8 | G27: =ROUND((E27*$E$25)+E27,2) ->  | H27: =ROUND(G27*F27,2) ->  | J27: 0
A28: 2.2 | B28: 72961 | C28: REGULARIZACAO E COMPACTACAO DE SUBLEITO | D28: M2 | F28: =F31 -> 108.6 | G28: =ROUND((E28*$E$25)+E28,2) ->  | H28: =ROUND(G28*F28,2) ->  | J28: 0
A29: 2.3 | B29: 96400 | C29: EXECUÇÃO E COMPACTAÇÃO DE BASE E OU SUB BASE COM MACADAME SECO/RACHÃO | D29: M3 | F29: =(F22+9)*0.25+(12*0.8*0.3) -> 27.28 | J29: 0
A30: 2.4 | B30: 96396 | C30: EXECUÇÃO E COMPACTAÇÃO DE BASE E OU SUB BASE COM BRITA GRADUADA SIMPLES | D30: M3 | F30: =(F22+9)*0.15+(12*0.8*0.3) -> 17.52 | H30: =ROUND(G30*F30,2) ->  | J30: 0
A31: 2.5 | B31: 96401 | C31: EXECUÇÃO DE IMPRIMAÇÃO COM ASFALTO DILUÍDO CM-30. AF_09/2017 | D31: M2 | F31: =F22+20 -> 108.6 | H31: =ROUND(G31*F31,2) ->  | J31: 0
A32: 2.6 | B32: 95997 | C32: CONSTRUÇÃO DE PAVIMENTO COM APLICAÇÃO DE CONCRETO BETUMINOSO USINADO A QUENTE (CBUQ), CAMADA DE ROLAMENTO, COM ESPESSURA DE 6,0 CM - EXCLUSIVE TRANSPORTE. AF_03/2017 | D32: M3 | F32: =ROUND(F31*0.06,2) -> 6.52 | H32: =ROUND(G32*F32,2) ->  | J32: 0
A33: 2.7 | B33: 95875 | C33: TRANSPORTE COM CAMINHÃO BASCULANTE DE 10 M3, EM VIA URBANA PAVIMENTADA | D33: M3XKM | F33: =(F27+F32)*8 -> 410.56 | H33: =ROUND(G33*F33,2) ->  | J33: 0
A34: 2.8 | B34: 72947 | C34: SINALIZACAO HORIZONTAL COM TINTA RETRORREFLETIVA A BASE DE RESINA ACRILICA COM MICROESFERAS DE VIDRO | D34: M2 | F34: =4.8+(1.6*28)+(80*0.2) -> 65.6 | H34: =ROUND(G34*F34,2) ->  | J34: 0
J35: 0
A36: 3 | C36: DRENAGEM PLUVIAL | D36: BDI | E36: ='P. BDI 3'!F31 ->  | G36: TOTAL DO GRUPO: | H36: =SUM(H37:H45) -> 
J37: 0
A38: 3.1 | B38: 2 S 04 960 02 DNIT 11/2016 | C38: BOCA DE LOBO | D38: UN | F38: 2 | G38: =ROUND((E38*$E$36)+E38,2) ->  | H38: =ROUND(G38*F38,2) ->  | J38: 0
A39: 3.2 | B39: 92221 | C39: TUBO DE CONCRETO PARA REDES COLETORAS DE ÁGUAS PLUVIAIS, DIÂMETRO DE 600 MM, JUNTA RÍGIDA, FORNECIMENTO E ASSENTAMENTO. | D39: M | F39: 12 | G39: =ROUND((E39*$E$36)+E39,2) ->  | H39: =ROUND(G39*F39,2) ->  | J39: 0
A40: 3.3 | B40: 2 S 04 962 02 DNIT 11/2016 | C40: CAIXA DE LIGAÇÃO E PASSAGEM | D40: UN | F40: 2 | H40: =ROUND(G40*F40,2) ->  | J40: 0
A41: 3.4 | B41: 90100 | C41: ESCAVAÇÃO MECANIZADA COM RETROESCAVADEIRA | D41: M3 | F41: =(F39)*0.8*1.4 -> 13.44 | J41: 0
A42: 3.5 | B42: 95875 | C42: TRANSPORTE COM CAMINHÃO BASCULANTE DE 10 M3, EM VIA URBANA PAVIMENTADA | D42: M3XKM | F42: =(F41*8) -> 107.52 | J42: 0
A43: 3.6 | B43: 93379 | C43: REATERRO MECANIZADO DE VALA COM RETROESCAVADEIRA, COMPACTADO | D43: M3 | F43: =(F39)*0.8*0.6 -> 5.76 | J43: 0
A44: 3.7 | B44: 94265 | C44: GUIA (MEIO-FIO) CONCRETO, MOLDADA IN LOCO EM TRECHO RETO COM EXTRUSORA, 14 CM BASE X 30 CM ALTURA. AF_06/2016 | D44: M | F44: 103 | H44: =ROUND(G44*F44,2) ->  | J44: 0
J45: 0
A46: 4 | C46: MURO / MURETA | D46: BDI | E46: ='P. BDI 1'!F31 ->  | G46: TOTAL DO GRUPO: | H46: =SUM(H47:H52) -> 
J47: 0
A48: 4.1 | B48: 97622 | C48: DEMOLIÇÃO DE ALVENARIA | D48: M3 | F48: =10*0.2 -> 2 | G48: =ROUND((E48*$E$46)+E48,2) ->  | H48: =ROUND(G48*F48,2) ->  | J48: 0
A49: 4.2 | B49: 95956 | C49: EXECUÇÃO DE ESTRUTURAS DE CONCRETO ARMADO,FCK = 25 MPA. | D49: M3 | F49: =0.15*0.2*7 -> 0.21 | G49: =ROUND((E49*$E$46)+E49,2) ->  | J49: 0
A50: 4.3 | B50: 87478 | C50: ALVENARIA DE VEDAÇÃO DE BLOCOS CERÂMICOS FURADOS (ESPESSURA 9CM) E ARGAMASSA DE ASSENTAMENTO COM PREPARO MANUAL. AF_06/2014 | D50: M2 | F50: 6 | J50: 0
A51: 4.4 | B51: 87879 | C51: CHAPISCO APLICADO SOMENTE EM PILARES E VIGAS DAS PAREDES INTERNAS, COM COLHER DE PEDREIRO. ARGAMASSA TRAÇO 1:3 | D51: M2 | F51: =F50*2 -> 12 | J51: 0
A52: 4.5 | B52: 87532 | C52: EMBOÇO, PARA RECEBIMENTO DE CERÂMICA, EM ARGAMASSA TRAÇO 1:2:8, PREPARO MANUAL, APLICADO MANUALMENTE EM FACES , ESPESSURA DE 20MM, COM EXECUÇÃO DE TALISCAS. AF_06/2014 | D52: M2 | F52: =F51 -> 12 | J52: 0
J53: 0
A54: 5 | C54: RAMPAS ACESSIVEIS | D54: BDI | E54: =E46 ->  | G54: TOTAL DO GRUPO: | H54: =SUM(H55:H61) -> 
J55: 0
A56: 5.1 | B56: 96995 | C56: REGULARIZACAO E COMPACTACAO MANUAL DE TERRENO COM SOQUETE | D56: M3 | F56: =F60*0.05 -> 0.36 | G56: =ROUND((E56*$E$54)+E56,2) ->  | H56: =ROUND(G56*F56,2) ->  | J56: =ROUND(F56*E56,2) -> 0
A57: 5.2 | B57: 4721 | C57: LASTRO DE PEDRA BRITADA N. 1 (9,5 a 19 MM) ESPESSURA 5 CM | D57: M3 | F57: =F60*0.05 -> 0.36 | G57: =ROUND((E57*$E$54)+E57,2) ->  | H57: =ROUND(G57*F57,2) ->  | J57: =ROUND(F57*E57,2) -> 0
A58: 5.3 | B58: 93679 alt. | C58: EXECUÇÃO DE PAVIMENTO EM PISO INTERTRAVADO, GUIA TATIL OU ALERTA, COLORIDO, INCL TRAVAMENTO COM AREIA, INCLUSO COLCHAO DE PÓ DE PEDRA 5 CM E COMPACTACAO COM PLACA VIBRATORIA, COM BLOCO DE 20 X 20 CM, ESPESSURA 6 CM. | D58: M2 | F58: =0.55*4 -> 2.2 | G58: =ROUND((E58*$E$54)+E58,2) ->  | H58: =ROUND(G58*F58,2) ->  | J58: =ROUND(F58*E58,2) -> 0
A59: 5.4 | B59: 96536 | C59: FORMA TABUA P/ CONCRETO C/ REAPROVEITAMENTO INCLUSIVE GRAVATEAMENTO | D59: M2 | F59: =0.87*2 -> 1.74 | G59: =ROUND((E59*$E$54)+E59,2) ->  | H59: =ROUND(G59*F59,2) ->  | J59: =ROUND(F59*E59,2) -> 0
A60: 5.5 | B60: 68325 | C60: PISO EM CONCRETO 20 MPA PREPARO MECANICO, ESPESSURA 7CM, DESEMPENADO | D60: M2 | F60: =1.8*4 -> 7.2 | G60: =ROUND((E60*$E$54)+E60,2) ->  | H60: =ROUND(G60*F60,2) ->  | J60: =ROUND(F60*E60,2) -> 0
J61: 0
C62: RUA FIRMO HABLICH | G62: TOTAL: | H62: =H64+H78+H89 ->  | J62: 0
J63: 0
A64: 6 | C64: PAVIMENTAÇÃO | D64: BDI | E64: =E25 ->  | G64: TOTAL DO GRUPO: | H64: =SUM(H65:H77) -> 
A66: 6.1 | B66: 90100 | C66: ESCAVAÇÃO MECANIZADA COM RETROESCAVADEIRA | D66: M3 | E66: =E27 -> 0 | F66: =F69+F68 -> 52 | G66: =ROUND((E66*$E$64)+E66,2) ->  | H66: =ROUND(G66*F66,2) ->  | J66: =ROUND(E66*F66,2) -> 0
A67: 6.2 | B67: 72961 | C67: REGULARIZACAO E COMPACTACAO DE SUBLEITO | D67: M2 | E67: =E28 -> 0 | F67: 130 | G67: =ROUND((E67*$E$64)+E67,2) ->  | J67: =ROUND(E67*F67,2) -> 0
A68: 6.3 | B68: 96400 | C68: EXECUÇÃO E COMPACTAÇÃO DE BASE E OU SUB BASE COM MACADAME SECO/RACHÃO | D68: M3 | E68: =E29 -> 0 | F68: =(F67)*0.25 -> 32.5 | J68: 0
A69: 6.4 | B69: 96396 | C69: EXECUÇÃO E COMPACTAÇÃO DE BASE E OU SUB BASE COM BRITA GRADUADA SIMPLES | D69: M3 | E69: =E30 -> 0 | F69: =(F67)*0.15 -> 19.5 | J69: 0
A70: 6.5 | B70: 96401 | C70: EXECUÇÃO DE IMPRIMAÇÃO COM ASFALTO DILUÍDO CM-30. AF_09/2017 | D70: M2 | E70: =E31 -> 0 | F70: =F67 -> 130 | J70: 0
A71: 6.6 | B71: 73806 | C71: LIMPEZA DE SUPERFICIES COM JATO DE ALTA PRESSAO DE AR E AGUA | D71: M2 | F71: =F72 -> 800 | J71: 0
A72: 6.7 | B72: 72942 | C72: PINTURA DE LIGACAO COM EMULSAO RR-1C | D72: M2 | F72: =630+300-F70 -> 800 | J72: 0
A73: 6.8 | B73: 96001 | C73: FRESAGEM DE PAVIMENTO ASFÁLTICO (PROFUNDIDADE 5,0 CM) | D73: M2 | F73: 300 | J73: 0
A74: 6.9 | B74: 95997 | C74: CONSTRUÇÃO DE PAVIMENTO COM APLICAÇÃO DE CONCRETO BETUMINOSO USINADO A QUENTE (CBUQ), CAMADA DE ROLAMENTO, COM ESPESSURA DE 6,0 CM | D74: M3 | E74: =E32 -> 0 | F74: =(F70+F72)*0.06 -> 55.8 | H74: =ROUND(G74*F74,2) ->  | J74: 0
A75: 6.10 | B75: 95875 | C75: TRANSPORTE COM CAMINHÃO BASCULANTE DE 10 M3, EM VIA URBANA PAVIMENTADA | D75: M3XKM | E75: =E33 -> 0 | F75: =(F66+F74)*8 -> 862.4 | H75: =ROUND(G75*F75,2) ->  | J75: 0
A76: 6.11 | B76: 72947 | C76: SINALIZACAO HORIZONTAL COM TINTA RETRORREFLETIVA A BASE DE RESINA ACRILICA COM MICROESFERAS DE VIDRO | D76: M2 | E76: =E34 -> 0 | F76: =(1.6*20)+(0.2*50) -> 42 | J76: 0
J77: 0
A78: 7 | C78: DRENAGEM PLUVIAL | D78: BDI | E78: =E36 ->  | G78: TOTAL DO GRUPO: | H78: =SUM(H79:H87) -> 
J79: 0
A80: 7.1 | B80: 2 S 04 960 02 DNIT 11/2016 | C80: BOCA DE LOBO | D80: UN | F80: 4 | G80: =ROUND((E80*$E$78)+E80,2) ->  | H80: =ROUND(G80*F80,2) ->  | J80: 0
A81: 7.2 | B81: 92210 | C81: TUBO DE CONCRETO PARA REDES COLETORAS DE ÁGUAS PLUVIAIS, DIÂMETRO DE 400 MM, JUNTA RÍGIDA. - FORNECIMENTO E ASSENTAMENTO. AF_12/2015 | D81: M | F81: =(15.5+14+16)+7.5 -> 53 | J81: 0
A82: 7.3 | B82: 90100 | C82: ESCAVAÇÃO MECANIZADA COM RETROESCAVADEIRA | D82: M3 | F82: =(F81)*0.8*1.4 -> 59.36 | J82: 0
A83: 7.4 | B83: 95875 | C83: TRANSPORTE COM CAMINHÃO BASCULANTE DE 10 M3, EM VIA URBANA PAVIMENTADA | D83: M3XKM | F83: =(F82*8)-F85 -> 466.93 | J83: 0
A84: 7.5 | B84: 93379 | C84: REATERRO MECANIZADO DE VALA COM RETROESCAVADEIRA, COMPACTADO | D84: M3 | F84: =(F81)*0.8*0.6 -> 25.44 | J84: 0
A85: 7.6 | B85: 96396 | C85: EXECUÇÃO E COMPACTAÇÃO DE BASE E OU SUB BASE COM BRITA GRADUADA SIMPLES | D85: M3 | E85: =E30 -> 0 | F85: =(F86)*0.15 -> 7.95 | J85: 0
A86: 7.7 | B86: 96401 | C86: EXECUÇÃO DE IMPRIMAÇÃO COM ASFALTO DILUÍDO CM-30. AF_09/2017 | D86: M2 | E86: =E31 -> 0 | F86: =(F81)*1 -> 53 | J86: 0
A87: 7.8 | B87: 94265 | C87: GUIA (MEIO-FIO) CONCRETO, MOLDADA IN LOCO EM TRECHO RETO COM EXTRUSORA, 14 CM BASE X 30 CM ALTURA. AF_06/2016 | D87: M | E87: =E44 -> 0 | F87: 10 | J87: 0
A89: 8 | C89: RAMPAS ACESSIVEIS | D89: BDI | E89: =E54 ->  | G89: TOTAL DO GRUPO: | H89: =SUM(H90:H95) ->  | J89: =ROUND(E89*F89,2) -> 
J90: 0
A91: 8.1 | B91: 96995 | C91: REGULARIZACAO E COMPACTACAO MANUAL DE TERRENO COM SOQUETE | D91: M3 | E91: =E56 -> 0 | F91: =F95*0.05 -> 0.36 | G91: =ROUND((E91*$E$89)+E91,2) ->  | H91: =ROUND(G91*F91,2) ->  | J91: =ROUND(F91*E91,2) -> 0
A92: 8.2 | B92: 4721 | C92: LASTRO DE PEDRA BRITADA N. 1 (9,5 a 19 MM) ESPESSURA 5 CM | D92: M3 | E92: =E57 -> 0 | F92: =F95*0.05 -> 0.36 | G92: =ROUND((E92*$E$89)+E92,2) ->  | H92: =ROUND(G92*F92,2) ->  | J92: =ROUND(F92*E92,2) -> 0
A93: 8.3 | B93: 93679 alt. | C93: EXECUÇÃO DE PAVIMENTO EM PISO INTERTRAVADO, GUIA TATIL OU ALERTA, COLORIDO, INCL TRAVAMENTO COM AREIA, INCLUSO COLCHAO DE PÓ DE PEDRA 5 CM E COMPACTACAO COM PLACA VIBRATORIA, COM BLOCO DE 20 X 20 CM, ESPESSURA 6 CM. | D93: M2 | E93: =E58 -> 0 | F93: =0.55*4 -> 2.2 | G93: =ROUND((E93*$E$89)+E93,2) ->  | H93: =ROUND(G93*F93,2) ->  | J93: =ROUND(F93*E93,2) -> 0
A94: 8.4 | B94: 96536 | C94: FORMA TABUA P/ CONCRETO C/ REAPROVEITAMENTO INCLUSIVE GRAVATEAMENTO | D94: M2 | E94: =E59 -> 0 | F94: =0.87*2 -> 1.74 | G94: =ROUND((E94*$E$89)+E94,2) ->  | H94: =ROUND(G94*F94,2) ->  | J94: =ROUND(F94*E94,2) -> 0
A95: 8.5 | B95: 68325 | C95: PISO EM CONCRETO 20 MPA PREPARO MECANICO, ESPESSURA 7CM, DESEMPENADO | D95: M2 | E95: =E60 -> 0 | F95: =1.8*4 -> 7.2 | G95: =ROUND((E95*$E$89)+E95,2) ->  | H95: =ROUND(G95*F95,2) ->  | J95: =ROUND(F95*E95,2) -> 0
A97: VALOR TOTAL DA OBRA : | H97: =SUM(J19:J96) -> 
A98: BDI : | H98: =H99-H97 -> 
A99: VALOR TOTAL DA OBRA COM BDI: | H99: =H18+H54+H25+H36+H46+H64+H78+H89 -> 
D108: Responsável Técnico: | E108: ='P. BDI 1'!C42 -> .
D109: Carimbo e Assinatura CREA/CAU: | E109: ='P. BDI 1'!C43 -> .
D122: Responsavel Legal: | E122: ='P. BDI 1'!C51 -> .
D123: Carimbo e Assinatura | E123: ='P. BDI 1'!C52 -> Cpf:

Sheet EXCLUIR (hidden)
A1: IMPRIMIR EM PAPEL TIMBRADO DA EMPRESA PROPONENTE
A2: PLANILHA ORÇAMENTARIA
A5: ='P. BDI 1'!B3 -> Edital : | C5: ='P. BDI 1'!C3:F3 -> TP- 002/2019 | D5: Área: | F5: =F43 -> 0 | H5: m²
A6: ='P. BDI 1'!B4 -> Tomador: | C6: ='P. BDI 1'!C4:F4 -> Prefeitura Municipal de Dois Vizinhos - PR | D6: Custo R$/m2 | F6: =H71/F5 -> 
A7: ='P. BDI 1'!B5 -> Empreendimento: | C7: ='P. BDI 1'!C5:F5 -> Reforma e revitalização de vias urbanas
A8: ='P. BDI 1'!B6 -> Local da Obra: | C8: ='P. BDI 1'!C6:F6 -> Dois Vizinhos - Pr
A9: ='P. BDI 1'!B7 -> Empresa Prop.: | C9: ='P. BDI 1'!C7:F7 -> xxxxxxxxxxxxxx
A10: ='P. BDI 1'!B8 -> CNPJ: | C10: ='P. BDI 1'!C8:F8 -> xxxxxxxxxxxxxx
A11: ='P. BDI 1'!B9 -> Referencia: | C11: SINAPI 05/2018 Desonerado
A12: BDI c/ desoneração: | C12: =QCI!C15 -> 0
A14: ITEM . | B14: REF. | C14: DESCRIÇÃO | D14: UN | E14: VALOR UNIT. | F14: QUANT. | G14: VALOR UNIT C/ BDI | H14: TOTAL
C16: RUA PRESIDENTE KENNEDY
A17: .1 | C17: SERVIÇOS PRELIMINARES | D17: BDI | E17: =E31 ->  | G17: TOTAL DO GRUPO: | H17: =SUM(H18:H30) -> 1085.64
A19: 1.1 | B19: 74209/001 | C19: PLACA DE OBRA (PARA CONSTRUCAO CIVIL) EM CHAPA GALVANIZADA *N. 22*, DE *2,0 X 1,125* M | D19: M2 | E19: 321.96 | F19: 2.25 | G19: =ROUND((E19*$C$12)+E19,2) -> 321.96 | H19: =ROUND(G19*F19,2) -> 724.41
B21: 97627 | C21: DEMOLIÇÃO DE PILARES (POSTES) EM CONCRETO ARMADO, DE FORMA MECANIZADA COM MARTELETE, SEM REAPROVEITAMENTO. | D21: M3 | E21: 209.33 | F21: =5*0.35*0.35*2.5 -> 1.53125 | G21: =ROUND((E21*$C$12)+E21,2) -> 209.33 | H21: =ROUND(G21*F21,2) -> 320.54
B22: 85335 seil | C22: RETIRADA DE MEIO FIO C/ EMPILHAMENTO E S/ REMOCAO | D22: M | E22: 7.75 | F22: 5.25 | G22: 7.75 | H22: 40.69
B23: 97636 | C23: DEMOLIÇÃO PARCIAL DE PAVIMENTO ASFÁLTICO, DE FORMA MECANIZADA, SEM REAPROVEITAMENTO. AF_12/2017 | D23: M2 | E23: 9.22 | G23: 9.22 | H23: 0
A25: 1.2 | B25: 94319 | C25: ATERRO MANUAL COM SOLO, COMPACTADO PARA REGULARIZAÇÃO SUB-LEITO | D25: M3 | E25: 27.74 | F25: =ROUND(F43*0.05,2) -> 0 | G25: =ROUND((E25*$C$12)+E25,2) -> 27.74 | H25: =ROUND(G25*F25,2) -> 0
A26: 1.3 | B26: 96396 | C26: EXECUÇÃO E COMPACTAÇÃO DE BASE E OU SUB BASE COM BRITA GRADUADA SIMPLES | D26: M3 | E26: 70.26 | F26: =ROUND(F43*0.06,2) -> 0 | G26: 70.26 | H26: 0
B29: der 601200 | C29: reaterro e apiloamento mecanico | D29: M3 | E29: 21.38 | G29: =ROUND((E29*$C$12)+E29,2) -> 21.38 | H29: =ROUND(G29*F29,2) -> 0
B30: 93377 | C30: REATERRO MECANIZADO DE VALA COM RETROESCAVADEIRA (CAPACIDADE DA CAÇAMBA DA RETRO: 0,26 M³ / POTÊNCIA: 88 HP), LARGURA DE 0,8 A 1,5 M, PROFUNDIDADE DE 1,5 A 3,0 M, COM SOLO (SEM SUBSTITUIÇÃO) DE 1ª CATEGORIA EM LOCAIS COM ALTO NÍVEL DE INTERFERÊNCIA. AF_04/2016 | D30: M3 | E30: 7.25
A31: .2 | C31: PAVIMENTAÇÃO RUA KENDUY | D31: BDI | E31: ='P. BDI 2'!F31 ->  | G31: TOTAL DO GRUPO: | H31: =SUM(H42:H68) -> 0
B34: DER 512050 | C34: Demolição Mecânica de Pavimento e Transporte | D34: M3 | E34: 22.19
B35: DER 511100 | C35: Regularização compac.subleito 100% PN | D35: M2 | E35: 2.27
B36: DER 531000 | C36: Brita Graduada | D36: M3 | E36: 85.92
B37: DER 531350 | C37: Macadame Seco c/ Bica Corrida | D37: M3 | E37: 66.54
B38: 96401 | C38: EXECUÇÃO DE IMPRIMAÇÃO COM ASFALTO DILUÍDO CM-30. AF_09/2017 | D38: M2 | E38: 4.34
B39: 96001 | C39: FRESAGEM DE PAVIMENTO ASFALTICO PROF. 5CM | D39: M2 | E39: 4.63
B42: 72942 | C42: PINTURA DE LIGACAO COM EMULSAO RR-1C | D42: M2 | E42: 1.29
A43: 2.1 | B43: 95993 | C43: CONSTRUÇÃO DE PAVIMENTO COM APLICAÇÃO DE CONCRETO BETUMINOSO USINADO A QUENTE (CBUQ), CAMADA DE ROLAMENTO, COM ESPESSURA DE 6,0 CM - EXCLUSIVE TRANSPORTE. AF_03/2017 | D43: M3 | E43: 658.3 | G43: 658.3 | H43: 0
B44: 72887 | C44: TRANSPORTE COMERCIAL COM CAMINHAO BASCULANTE 6 M3, RODOVIA PAVIMENTADA DMT 35 KM
B45: 95875 | C45: TRANSPORTE COM CAMINHÃO BASCULANTE DE 10 M3, EM VIA URBANA PAVIMENTADA | D45: M3XKM | E45: 1.02
B46: 94265 | C46: GUIA (MEIO-FIO) CONCRETO, MOLDADA IN LOCO EM TRECHO RETO COM EXTRUSORA, 14 CM BASE X 30 CM ALTURA. AF_06/2016 | D46: M | E46: 26.36
B47: 94263 | C47: GUIA (MEIO-FIO) CONCRETO, MOLDADA IN LOCO REBAIXADO COM EXTRUSORA, 11,5 CM BASE X 22 CM ALTURA. | D47: M | E47: 21.29
B49: 72947 | C49: SINALIZACAO HORIZONTAL COM TINTA RETRORREFLETIVA A BASE DE RESINA ACRILICA COM MICROESFERAS DE VIDRO | D49: M2 | E49: 26.26
A51: .3 | C51: DRENAGEM PLUVIAL | D51: BDI | E51: ='P. BDI 3'!F31 ->  | G51: TOTAL DO GRUPO: | H51: =SUM(H76:H87) -> 0
B53: 2 S 04 960 02 DNIT | C53: *BOCA DE LOBO EM SIMPLES GRELHA | D53: UN | E53: 922.52 | F53: 0 | G53: =ROUND((E53*$C$12)+E53,2) -> 922.52 | H53: =ROUND(G53*F53,2) -> 0
B54: 83659 | C54: BOCA DE LOBO EM ALVENARIA TIJOLO MACICO, REVESTIDA C/ ARGAMASSA DE CIMENTO E AREIA 1:3, SOBRE LASTRO DE CONCRETO 10CM E TAMPA DE CONCRETO ARMADO | D54: UN | E54: 720.77 | F54: 0 | G54: 720.77 | H54: 0
B55: 92221 | C55: TUBO DE CONCRETO PARA REDES COLETORAS DE ÁGUAS PLUVIAIS, DIÂMETRO DE 600 MM, JUNTA RÍGIDA, INSTALADO EM LOCAL COM ALTO NÍVEL DE INTERFERÊNCIAS - FORNECIMENTO E ASSENTAMENTO. | D55: M | E55: 141.8
B56: 2 S 04 962 02 DNIT | C56: CAIXA DE LIGAÇÃO E PASSAGEM - CLP 02 | D56: UN | E56: 972.93
B57: 93362 | C57: REATERRO MECANIZADO DE VALA COM ESCAVADEIRA HIDRÁULICA (CAPACIDADE DA CAÇAMBA: 0,8 M³ / POTÊNCIA: 111 HP), LARGURA DE 1,5 A 2,5 M, PROFUNDIDADE DE 1,5 A 3,0 M, COM SOLO (SEM SUBSTITUIÇÃO) DE 1ª CATEGORIA EM LOCAIS COM ALTO NÍVEL DE INTERFERÊNCIA. AF_04/2016 | D57: M3 | E57: 8.3
A60: .4 | C60: MURO / MURETA | D60: BDI | E60: ='P. BDI 1'!F31 ->  | G60: TOTAL DO GRUPO: | H60: =SUM(H84:H95) -> 0
B62: 97622 SINAPI | C62: DEMOLIÇÃO DE ALVENARIA | D62: M3 | E62: 42.97
B63: 95955 SINAPI | C63: EXECUÇÃO DE ESTRUTURAS DE CONCRETO ARMADO,FCK = 25 MPA. | D63: M3 | E63: 1889.83
B64: 87478 SINAPI | C64: ALVENARIA DE VEDAÇÃO DE BLOCOS CERÂMICOS FURADOS DE 9X19X39CM (ESPESSURA 9CM) E ARGAMASSA DE ASSENTAMENTO COM PREPARO MANUAL. AF_06/2014 | D64: M2 | E64: 32.11
B65: 87879 SINAPI | C65: CHAPISCO APLICADO SOMENTE EM PILARES E VIGAS DAS PAREDES INTERNAS, COM COLHER DE PEDREIRO. ARGAMASSA TRAÇO 1:3 | D65: M2 | E65: 2.94
B66: 87532 SINAPI | C66: EMBOÇO, PARA RECEBIMENTO DE CERÂMICA, EM ARGAMASSA TRAÇO 1:2:8, PREPARO MANUAL, APLICADO MANUALMENTE EM FACES , ESPESSURA DE 20MM, COM EXECUÇÃO DE TALISCAS. AF_06/2014 | D66: M2 | E66: 26.31
A69: VALOR TOTAL DA OBRA : | H69: =ROUND(H71/(1+C12),2) -> 1085.64
A70: BDI : | H70: =H71-H69 -> 0
A71: VALOR TOTAL DA OBRA COM BDI: | H71: =H17+H31 -> 1085.64
D86: Responsável Técnico: | E86: ='P. BDI 1'!C42 -> .
D87: Carimbo e Assinatura CREA/CAU: | E87: ='P. BDI 1'!C43 -> .
D94: Responsavel Legal:
D95: Carimbo e Assinatura

Sheet QCI
A1: IMPRIMIR EM PAPEL TIMBRADO DA EMPRESA PROPONENTE
A2: QUADRO DE COMPOSIÇÃO DE INVESTIMENTO
A8: ='P. BDI 1'!B3 -> Edital : | C8: ='P. BDI 1'!C3:F3 -> TP- 002/2019 | D8: Area Total (m2): | F8: ='Kennedy e Hablich'!F70+'Kennedy e Hablich'!F72+'Kennedy e Hablich'!F31 -> 1038.6
A9: ='P. BDI 1'!B4 -> Tomador: | C9: ='P. BDI 1'!C4:F4 -> Prefeitura Municipal de Dois Vizinhos - PR | D9: Valor Tot. c/ BDI: | F9: =H34 -> 
A10: ='P. BDI 1'!B5 -> Empreendimento: | C10: ='P. BDI 1'!C5:F5 -> Reforma e revitalização de vias urbanas | D10: Custo R$/m2 | F10: =F9/F8 -> 
A11: ='P. BDI 1'!B6 -> Local da Obra: | C11: =C26 -> AVENIDA PRESIDENTE KENNEDY E RUA FIRMO HABLICH
A12: ='P. BDI 1'!B7 -> Empresa Prop.: | C12: ='P. BDI 1'!C7:F7 -> xxxxxxxxxxxxxx
A13: ='P. BDI 1'!B8 -> CNPJ: | C13: ='P. BDI 1'!C8:F8 -> xxxxxxxxxxxxxx
A14: ='P. BDI 1'!B9 -> Referencia: | C14: ='P. BDI 1'!C9:F9 -> xxxxxxxxxxxxxx
B25: LOTE | C25: DESCRIÇÃO | D25: % DO GRUPO | F25: VALOR DO GRUPO: | H25: TOTAL ACUM.
B26: 1 | C26: AVENIDA PRESIDENTE KENNEDY E RUA FIRMO HABLICH | D26: =F26/$H$34 ->  | F26: ='Kennedy e Hablich'!H99 ->  | H26: =F26 -> 
B32: VALOR TOTAL DA OBRA : | H32: ='Kennedy e Hablich'!H97 -> 
B33: BDI : | H33: ='Kennedy e Hablich'!H98 -> 
B34: VALOR TOTAL DA OBRA COM BDI: | H34: =SUM(F26:G31) -> 
D46: Responsável Técnico: | E46: ='P. BDI 1'!C42 -> .
D47: Carimbo e Assinatura CREA/CAU: | E47: ='P. BDI 1'!C43 -> .
D58: Responsavel Legal: | E58: ='P. BDI 1'!C51 -> .
D59: Carimbo e assinatura: | E59: ='P. BDI 1'!C52 -> Cpf:

Sheet CRON
A1: IMPRIMIR EM PAPEL TIMBRADO DA EMPRESA PROPONENTE
A2: CRONOGRAMA FÍSICO-FINANCEIRO
A5: ='P. BDI 1'!B3 -> Edital : | C5: ='P. BDI 1'!C3:F3 -> TP- 002/2019 | D5: Area: | F5: =QCI!F8 -> 1038.6
A6: ='P. BDI 1'!B4 -> Tomador: | C6: ='P. BDI 1'!C4:F4 -> Prefeitura Municipal de Dois Vizinhos - PR | D6: Valor Tot. c/ BDI: | F6: =K22 -> 
A7: ='P. BDI 1'!B5 -> Empreendimento: | C7: ='P. BDI 1'!C5:F5 -> Reforma e revitalização de vias urbanas | D7: Custo R$/m2 | F7: =F6/F5 -> 
A8: ='P. BDI 1'!B6 -> Local da Obra: | C8: =QCI!C11 -> AVENIDA PRESIDENTE KENNEDY E RUA FIRMO HABLICH
A9: ='P. BDI 1'!B7 -> Empresa Prop.: | C9: ='P. BDI 1'!C7:F7 -> xxxxxxxxxxxxxx
A10: ='P. BDI 1'!B8 -> CNPJ: | C10: ='P. BDI 1'!C8:F8 -> xxxxxxxxxxxxxx
A11: ='P. BDI 1'!B9 -> Referencia: | C11: ='P. BDI 1'!C9:F9 -> xxxxxxxxxxxxxx
B15: LOTE | C15: DESCRIÇÃO | E15: VALOR DO GRUPO | G15: MÊS °1 | H15: MÊS °2 | I15: MÊS °3 | J15: MÊS °4 | K15: % TOTAL
B16: =QCI!B26 -> 1 | C16: =QCI!C26 -> AVENIDA PRESIDENTE KENNEDY E RUA FIRMO HABLICH | E16: =QCI!F26 ->  | G16: 0.9 | H16: 0.1 | K16: =SUM(G16:J16) -> 1
B22: TOTAL: | G22: =G17*E17+G16*E16+G19*E19+G20*E20+G21*E21 ->  | H22: =H17*E17+H16*E16+H19*E19+H20*E20+H21*E21 ->  | I22: =I17*E17+I16*E16+I19*E19+I20*E20+I21*E21 ->  | J22: =E16*J16 ->  | K22: =SUM(G22:J22) -> 
F33: Responsável Técnico: | G33: ='P. BDI 1'!C42 -> .
F34: Carimbo e Assinatura CREA/CAU: | G34: ='P. BDI 1'!C43 -> .
F46: Responsavel Legal: | G46: ='P. BDI 1'!C51 -> .
F47: Carimbo e Assinatura | G47: ='P. BDI 1'!C52 -> Cpf:

Sheet Comp. (hidden)
A1: COMPOSIÇÕES
B3: sipapi 05/18 desonerado | I3: DESC 5,0%
I4: =[3]Orçamento!J18 -> 0.98
A5: PISO | B5: .001 | C5: PISO EM CONCRETO 25MPA MOLDADO IN LOCO, ESPESSURA 9 CM, COM ARMACAO EM TELA SOLDADA Q-92, BARRA DE TRANF. POLIDO , JUNTA MASTIQUE. | D5: M2 | E5: COMSUMO | F5: VALOR UNIT | G5: VALOR TOTAL
A6: INSUMO | B6: 21141 | C6: TELA DE ACO SOLDADA NERVURADA CA-60, Q-92, (1,48 KG/M2), DIAMETRO DO FIO = 4,2 MM, ESPACAMENTO DA MALHA = 15 X 15 CM | D6: M2 | E6: 1.05 | F6: 7.49 | G6: =E6*F6 -> 7.8645 | I6: 15.07 | J6: =ROUND($I$4*I6,2) -> 14.77
A7: INSUMO | B7: 3777 | C7: LONA PLASTICA PRETA, E= 150 MICRA | D7: M2 | E7: 1,1280000 | F7: 1.07 | G7: =E7*F7 -> 1.20696 | I7: 20.77 | J7: =ROUND($I$4*I7,2) -> 20.35
A8: COMPOSICAO | B8: 88245 | C8: ARMADOR COM ENCARGOS COMPLEMENTARES | D8: H | E8: 0.02 | F8: 20.95 | G8: =E8*F8 -> 0.419 | I8: 20.77 | J8: =ROUND($I$4*I8,2) -> 20.35
A9: COMPOSICAO | B9: 88309 | C9: PEDREIRO COM ENCARGOS COMPLEMENTARES | D9: H | E9: 0.1388 | F9: 21.07 | G9: 2.924516 | I9: 20.89 | J9: =ROUND($I$4*I9,2) -> 20.47
A10: COMPOSICAO | B10: 88316 | C10: SERVENTE COM ENCARGOS COMPLEMENTARES | D10: H | E10: 0.3193 | F10: 16.48 | G10: 5.262064 | I10: 16.3 | J10: 15.97
A11: INSUMO | B11: 38405 | C11: CONCRETO USINADO BOMBEAVEL, CLASSE DE RESISTENCIA C25, COM BRITA 0 E 1, SLUMP =100 +/- 20 MM, INCLUI SERVICO DE BOMBEAMENTO (NBR 8953) | D11: M3 | E11: 0.09 | F11: 274.1 | G11: 24.669 | I11: 285.02 | J11: 279.32
A12: COMPOSICAO | B12: 95278 | C12: DESEMPENADEIRA DE CONCRETO, PESO DE 75KG, 4 PÁS, MOTOR A GASOLINA, POTÊNCIA 5,5 HP - DEPRECIAÇÃO. AF_09/2016 | D12: H | E12: 0.2 | F12: 0.54 | G12: 0.108 | I12: 0.54 | J12: 0.53
A13: COMPOSICAO | B13: 88309 | C13: PEDREIRO COM ENCARGOS COMPLEMENTARES | D13: H | E13: 0.1388 | F13: 21.07 | G13: =E13*F13 -> 2.924516 | I13: 20.89 | J13: =ROUND($I$4*I13,2) -> 20.47
A14: COMPOSICAO | B14: 74121/001 | C14: JUNTA DE DILATACAO PARA IMPERMEABILIZACAO, COM SELANTE ELASTICO MONOCOMPONENTE A BASE DE POLIURETANO, MASTIQUE ELASTICO | D14: M | E14: 0.6974 | F14: 19.07 | G14: =E14*F14 -> 13.299418 | I14: 0.54 | J14: =ROUND($I$4*I14,2) -> 0.53
A15: COMPOSICAO | B15: 97114 | C15: EXECUÇÃO DE JUNTAS DE CONTRAÇÃO PARA PAVIMENTOS DE CONCRETO. | D15: M | E15: 0.6974 | F15: 0.34 | G15: 0.237116 | I15: 20.89 | J15: 20.47
F16: TOTAL | G16: =SUM(G6:G15) -> 58.91509
A27: URBA | B27: .004 | C27: LASTRO DE BRITA ESPESSURA 6CM, INCLUSIVE ESPALHAMENTO DA BRITA E TRANSPORTE DMT 10 KM | D27: M2 | E27: COMSUMO | F27: VALOR UNIT | G27: VALOR TOTAL
A28: COMPOSICAO | B28: 88316 | C28: SERVENTE COM ENCARGOS COMPLEMENTARES | D28: H | E28: 0.025 | F28: =J28 -> 15.97 | G28: =E28*F28 -> 0.39925 | I28: 16.3 | J28: =ROUND($I$4*I28,2) -> 15.97
A29: COMPOSICAO | B29: 4721 | C29: PEDRA BRITADA N. 1 (9,5 a 19 MM) POSTO PEDREIRA/FORNECEDOR, SEM FRETE | D29: M3 | E29: 0.06 | F29: =J29 -> 37 | G29: =E29*F29 -> 2.22 | I29: 37.75 | J29: =ROUND($I$4*I29,2) -> 37
A30: COMPOSICAO | B30: 72887 | C30: TRANSPORTE COMERCIAL COM CAMINHAO BASCULANTE 6 M3, RODOVIA PAVIMENTADA DMT 10KM | D30: M3XKM | E30: =E29*10 -> 0.6 | F30: =J30 -> 0.99 | G30: =E30*F30 -> 0.594 | I30: 1.01 | J30: =ROUND($I$4*I30,2) -> 0.99
G32: =G28+G29+G30+G31 -> 3.21325
A36: PISO | B36: 72183 | C36: PISO EM CONCRETO 20MPA PREPARO MECANICO, ESPESSURA 7 CM, COM ARMACAO EM TELA SOLDADA | D36: M2
A37: INSUMO | B37: 7156 | C37: TELA DE ACO SOLDADA NERVURADA, CA-60, Q-196, (3,11 KG/M2), DIAMETRO DO FIO = 5,0 MM, LARGURA = 2,45 M, ESPACAMENTO DA MALHA = 10 X 10 CM | D37: M2 | E37: 1,0500000
A38: COMPOSICAO | B38: 88245 | C38: ARMADOR COM ENCARGOS COMPLEMENTARES | D38: H | E38: 0,0200000
A39: COMPOSICAO | B39: 88309 | C39: PEDREIRO COM ENCARGOS COMPLEMENTARES | D39: H | E39: 0,2600000
A40: COMPOSICAO | B40: 88316 | C40: SERVENTE COM ENCARGOS COMPLEMENTARES | D40: H | E40: 1,9400000
A41: COMPOSICAO | B41: 94970 | C41: CONCRETO FCK = 20MPA, TRAÇO 1:2,7:3 (CIMENTO/ AREIA MÉDIA/ BRITA 1) - PREPARO MECÂNICO COM BETONEIRA 600 L. AF_07/2016 | D41: M3 | E41: 0,0700000

Sheet composicao (hidden)
D5: SINAPI 06/2018
C7: SERP | D7: 97639 | E7: REMOÇÃO DE POSTES PEQUENOS DE ILUMINAÇÃO, DE CONCRETO. | F7: UN | G7: FATOR | H7: R$ | I7: VALOR
C8: COMPOSICAO | D8: 5680 | E8: RETROESCAVADEIRA SOBRE RODAS COM CARREGADEIRA, TRAÇÃO 4X2, POTÊNCIA LÍQ. 79 HP, CAÇAMBA CARREG. CAP. MÍN. 1 M3, CAÇAMBA RETRO CAP. 0,20 M3, PESO OPERACIONAL MÍN. 6.570 KG, PROFUNDIDADE ESCAVAÇÃO MÁX. 4,37 M - CHP DIURNO. AF_06/2014 | F8: CHP | G8: 0.75 | H8: 85.73 | I8: =G8*H8 -> 64.2975
C9: COMPOSICAO | D9: 88316 | E9: SERVENTE COM ENCARGOS COMPLEMENTARES | F9: H | G9: 0,5586000 | H9: 16.45 | I9: =G9*H9 -> 9.18897
C10: COMPOSICAO | D10: 88264 | E10: ELETRICISTA COM ENCARGOS COMPLEMENTARES | F10: H | G10: 0.25 | H10: 21.24 | I10: =G10*H10 -> 5.31
H11: total | I11: =SUM(I8:I10) -> 78.79647

Sheet CRONO MORADIAS 08-08-07 (hidden)
B1: CRONOGRAMA FÍSICO-FINANCEIRO
B2: =#REF! ->  | D2: ÁREA TOTAL 1008,00 m2
B3: Cliente: SECRETARIA DE AÇÃO SOCIAL
B4: DOIS VIZINHOS -PR
B6: Serviços | C6: Total do Ítem | E6: 1º Mes | G6: 2º Mes | I6: 3º Mes | K6: 4º Mes | M6: 5º Mes | O6: 6º Mes
C7: R($) | D7: (%) | E7: R($) | F7: (%) | G7: R($) | H7: (%) | I7: R($) | J7: (%) | K7: R($) | L7: (%) | M7: R($) | N7: (%) | O7: R($) | P7: (%)
A8: 1 | B8: =#REF! ->  | C8: ='Kennedy e Hablich'!#REF! ->  | D8: =C8/$C$19 ->  | E8: =C8/3 ->  | F8: =E8/C19 ->  | G8: =E8 ->  | H8: =G8/$C$19 ->  | I8: =G8 ->  | J8: =I8/$C$19 -> 
A9: 2 | B9: =#REF! ->  | C9: ='Kennedy e Hablich'!#REF! ->  | E9: =C9/6 ->  | F9: =E9/$C$19 ->  | G9: =E9 ->  | H9: =G9/$C$19 ->  | I9: =E9 ->  | J9: =I9/$C$19 ->  | K9: =I9 -> 
A10: 3 | B10: =#REF! ->  | C10: ='Kennedy e Hablich'!#REF! ->  | E10: =C10/12 ->  | F10: =E10/$C$19 ->  | G10: =E10 ->  | H10: =G10/$C$19 ->  | I10: =E10 ->  | J10: =I10/$C$19 ->  | K10: =I10 ->  | L10: =K10/$C$19 ->  | M10: =K10 ->  | N10: =M10/$C$19 ->  | O10: =M10 ->  | P10: =O10/$C$19 -> 
A11: 4 | B11: =#REF! ->  | C11: ='Kennedy e Hablich'!#REF! -> 
A12: 5 | B12: =#REF! ->  | C12: ='Kennedy e Hablich'!#REF! -> 
A13: 6 | B13: =#REF! ->  | C13: ='Kennedy e Hablich'!#REF! ->  | E13: =C13/12 ->  | F13: =E13/$C$19 ->  | G13: =E13 ->  | H13: =G13/$C$19 ->  | I13: =E13 ->  | J13: =I13/$C$19 ->  | K13: =I13 ->  | L13: =K13/$C$19 ->  | M13: =K13 ->  | N13: =M13/$C$19 ->  | O13: =M13 ->  | P13: =O13/$C$19 -> 
A14: 7 | B14: =#REF! ->  | C14: ='Kennedy e Hablich'!#REF! ->  | E14: =C14/12 ->  | F14: =E14/$C$19 ->  | G14: =E14 ->  | H14: =G14/$C$19 ->  | I14: =E14 ->  | J14: =I14/$C$19 ->  | K14: =I14 ->  | L14: =K14/$C$19 ->  | M14: =K14 ->  | N14: =M14/$C$19 ->  | O14: =M14 ->  | P14: =O14/$C$19 -> 
A15: 8 | B15: =#REF! ->  | C15: ='Kennedy e Hablich'!#REF! ->  | K15: =C15/9 ->  | L15: =K15/$C$19 ->  | M15: =K15 ->  | N15: =M15/$C$19 ->  | O15: =K15 ->  | P15: =O15/$C$19 -> 
A16: 9 | B16: =#REF! ->  | C16: ='Kennedy e Hablich'!#REF! -> 
A17: 10 | B17: =#REF! ->  | C17: ='Kennedy e Hablich'!#REF! -> 
A18: 11 | B18: =#REF! ->  | C18: ='Kennedy e Hablich'!#REF! -> 
B19: Totais R($) | C19: =SUM(C8:C18) -> 
B20: Totais Acumulados R($) | E20: =E19 ->  | F20: =F19 ->  | G20: =G19+E20 ->  | N20: =L20+N19 ->  | O20: =M20+O19 ->  | P20: =N20+P19 -> 
B22: Serviços | C22: Total do Ítem | E22: 7º Mes | G22: 8º Mes | I22: 9º Mes | K22: 10º Mes | M22: 11º Mes | O22: 12º Mes
C23: R($) | D23: (%) | E23: R($) | F23: (%) | G23: R($) | H23: (%) | I23: R($) | J23: (%) | K23: R($) | L23: (%) | M23: R($) | N23: (%) | O23: R($) | P23: (%)
A24: 1 | B24: =B8 ->  | C24: =C8 ->  | D24: =C24/$C$19 -> 
A25: 2 | B25: =B9 -> 
A26: 3 | E26: =E10 ->  | F26: =E26/$C$19 ->  | G26: =E26 ->  | H26: =G26/$C$19 ->  | I26: =G26 ->  | J26: =I26/$C$19 ->  | K26: =E26 ->  | L26: =K26/$C$19 ->  | M26: =G26 ->  | O26: =I26 ->  | P26: =O26/$C$19 -> 
A27: 4 | E27: =C27/6 ->  | F27: =E27/$C$19 ->  | G27: =E27 ->  | H27: =G27/$C$19 ->  | I27: =E27 ->  | J27: =I27/$C$19 ->  | K27: =I27 ->  | M27: =K27 ->  | O27: =M27 -> 
A28: 5 | E28: =C28/6 ->  | F28: =E28/$C$19 ->  | G28: =E28 ->  | H28: =G28/$C$19 ->  | I28: =E28 ->  | J28: =I28/$C$19 ->  | K28: =I28 ->  | M28: =K28 ->  | O28: =M28 -> 
A29: 6 | E29: =E13 ->  | F29: =E29/$C$19 ->  | G29: =E13 ->  | H29: =G29/$C$19 ->  | I29: =E29 ->  | J29: =I29/$C$19 ->  | K29: =E29 ->  | M29: =G29 ->  | O29: =I29 -> 
A30: 7 | E30: =E14 ->  | F30: =E30/$C$19 ->  | G30: =E14 ->  | H30: =G30/$C$19 ->  | I30: =E30 ->  | J30: =I30/$C$19 ->  | K30: =I30 ->  | M30: =K30 ->  | O30: =M30 -> 
A31: 8 | E31: =K15 ->  | F31: =E31/C19 ->  | G31: =E31 ->  | H31: =F31 ->  | I31: =G31 ->  | J31: =H31 ->  | K31: =G31 ->  | M31: =I31 ->  | O31: =K31 -> 
A32: 9 | K32: =C32/3 ->  | M32: =K32 ->  | O32: =K32 -> 
A33: 10 | K33: =C33/3 ->  | M33: =K33 ->  | O33: =K33 -> 
A34: 11 | K34: =C34/3 ->  | M34: =K34 ->  | O34: =K34 -> 
B35: Totais R($) | C35: =SUM(C24:C34) -> 
B36: Totais Acumulados R($) | E36: =E35+O20 ->  | F36: =F35+P20 ->  | G36: =E36+G35 -> 
